[Event "CCT Airthings Masters Play-In 2023"]
[Site "Online"]
[Date "2023.02.03"]
[Round "2"]
[White "Dedic8"]
[Black "GMBenjaminBok"]
[Result "1-0"]
[ECO "B90"]
[WhiteElo "2447"]
[BlackElo "2631"]
[Annotator "TA"]
[PlyCount "75"]
[EventDate "2023.02.03"]
[EventType "swiss"]
[EventCountry "NET"]
[SourceTitle "playchess.com"]
[Source "ChessBase"]
[SourceQuality "1"]
[TimeControl "600+2"]

{[%evp 21,75,24,30,0,0,0,10,0,3,0,12,22,24,28,27,18,29,21,26,18,18,31,36,47,41,47,36,35,191,159,226,235,497,485,1037,1019,988,897,1032,967,1531,1444,1251,859,1296,1296,1240,771,704,-551,296,-612,1990,1355,29987,29988]} 1. e4 {[%emt 0:00:03]} c5 {[%emt 0:00:11]} 2. Nf3 {[%emt 0:00:01]} d6 {[%emt 0:00:01]} 3. d4 {[%emt 0:00:02]} cxd4 {[%emt 0:00:00]} 4. Nxd4 {[%emt 0:00:00]} Nf6 {[%emt 0:00:01]} 5. Nc3 {[%emt 0:00:01]} a6 {[%emt 0:00:01]} 6. f3 {[%emt 0:00:02]} e5 {[%emt 0:00:04]} 7. Nb3 {[%emt 0:00:02]} Be6 {[%emt 0:00:01]} 8. Be3 {[%emt 0:00:02]} Be7 {[%emt 0:00:04]} 9. Qd2 {[%emt 0:00:04]} O-O {[%emt 0:00:01]} 10. O-O-O {[%emt 0:00:01]} Nbd7 {[%emt 0:00:01]} 11. g4 {[%emt 0:00:05]} b5 {[%emt 0:00:02]} 12. Rg1 {[%emt 0:00:01] B90: Sicilian Najdorf: Unusual White 6th moves, 6 Be3 Ng4 and 6 Be3 e5.} Nb6 {[%emt 0:00:07]} 13. g5 {[%emt 0:00:19]} Nh5 {[%emt 0:00:04]} 14. Na5 {[%emt 0:00:08] The position is equal.} Rc8 {[%emt 0:00:37] Prevents Nc6.} 15. Kb1 {[%emt 0:00:37]} (15. Nb7 Qc7 16. Nxd6 Rcd8 $17) 15... g6 {[%emt 0:00:20]} 16. h4 {[%emt 0:00:47]} (16. Nb7 Qc7 17. Na5 (17. Nxd6 $2 Rcd8 $19) 17... d5 18. exd5 Nxd5 19. Nxd5 Bxd5 $17) 16... b4 {[%emt 0:03:25]} 17. Nd5 {[%emt 0:00:25]} Nxd5 {[%emt 0:00:02][%mdl 64] Discovered Attack} 18. exd5 {[%emt 0:00:00]} Qxa5 {[%emt 0:00:02]} 19. dxe6 {[%emt 0:00:00]} fxe6 {[%emt 0:00:01]} 20. Bh3 {[%emt 0:00:00]} Ng7 {[%emt 0:00:02] [#]} (20... Rxf3 $2 21. Bxe6+ Kh8 22. Bxc8 $18) 21. h5 $1 {[%emt 0:00:01]} d5 {[%emt 0:00:16]} (21... gxh5 $2 22. g6 Bf6 23. Qxd6 $16) 22. hxg6 {[%emt 0:00:29]} hxg6 {[%emt 0:00:00]} (22... Rxf3 $2 23. Bg4 Rf5 24. gxh7+ Kh8 25. g6 $18) 23. Rh1 {[%emt 0:00:06][%cal Bg1h1,Bh1h6,Bh6e6][%mdl 32] [#]} Kf7 $146 {[%emt 0:01:36]} (23... Rxf3 $2 24. Qh2 Kf7 25. Rdf1 $18) ({Predecessor:} 23... d4 24. Qh2 Kf7 25. Bc1 Qd5 26. Rhe1 Rh8 27. Rxe5 Qc6 28. Ree1 d3 29. cxd3 Bd6 {½-½ Dvoinikov,A (2484)-Schubert,V (1846) WC-2014-S-00014 2011}) 24. f4 {[%emt 0:00:15]} e4 $2 {[%emt 0:00:11]} (24... d4 $1 $14 25. Bf2 Rh8) 25. Bd4 {[%emt 0:00:04] Bxg7 is the strong threat. This pair of bishops is nice.} Nf5 {[%emt 0:00:51]} (25... Rg8 $16 26. Bg4 Rc6) 26. Bxf5 $40 {[%emt 0:00:28][%mdl 128] White is out for blood.} gxf5 {[%emt 0:01:42]} (26... exf5 27. a3 Rc6) 27. Rh6 {[%emt 0:00:13] Black must now prevent Qh2.} Qb5 {[%emt 0:00:40]} (27... Bd6 $142 28. Qh2 Ke8 29. Rxe6+ Kd7) 28. Qh2 {[%emt 0:00:59] Qh5+ would kill now.} Ke8 {[%emt 0:00:15]} 29. Rxe6 {[%emt 0:00:01]} Rc6 {[%emt 0:00:14]} 30. Re5 {[%emt 0:00:43]} Kd7 {[%emt 0:00:01]} 31. Qh7 {[%emt 0:00:01]} Re6 {[%emt 0:00:05]} 32. Rxf5 {[%emt 0:00:47]} Rxf5 {[%emt 0:00:05]} 33. Qxf5 {[%emt 0:00:00]} Qe2 {[%emt 0:00:01]} 34. Kc1 {[%emt 0:00:31]} e3 {[%emt 0:00:03]} 35. g6 $4 {[%emt 0:00:27][%mdl 8192] [#]} (35. Bb6 Qf3 $18) (35. Qxd5+ $18 Rd6 36. Qf5+ Kc7 37. g6) 35... Qf3 $4 {[%emt 0:00:01][%mdl 8192]} (35... Qxd1+ $1 $19 36. Kxd1 e2+ 37. Ke1 Bh4+ 38. Bf2 Bxf2+ {[%mdl 64] Remove Defender} 39. Kxf2 e1=Q+ 40. Kf3 Qe2+ 41. Kg3 Kd6) 36. g7 $4 {[%emt 0:00:07][%mdl 8192]} (36. Re1 $18 Qf2 37. Qxd5+ (37. Bxe3 $2 Qxe1#) (37. Rxe3 Qg1+ 38. Kd2 Qg2+ 39. Kd3 Qf1+ 40. Kd2 Qg2+ 41. Kd3 Qf1+ 42. Kd2 Qg2+ $11) 37... Bd6 38. Qb7+ (38. Rd1 Qxf4 $16) 38... Bc7 39. Qh1) 36... e2 $4 {[%emt 0:00:00][%mdl 8192] [#]} (36... Qxd1+ $19 37. Kxd1 e2+ 38. Ke1 Bh4+ 39. Bf2 Bxf2+ {[%mdl 64] Remove Defender} 40. Kxf2 e1=Q+ 41. Kf3 Qe4+ 42. Qxe4 dxe4+ 43. Kg4 Rg6+ 44. Kf5 Rxg7 45. Kxe4 Rg2) 37. Re1 $1 {[%emt 0:00:02]} (37. g8=Q $2 exd1=Q#) ({Worse is} 37. Qxe6+ Kxe6 38. g8=Q+ Kd7 $11) 37... Qg3 {[%emt 0:00:03]} 38. Rxe2 {[%emt 0:00:07] White used his chance. Artfully played by Dedic8.   Weighted Error Value: White=0.58/Black=1.13} 1-0

[Event "CCT Airthings Masters Play-In 2023"]
[Site "Online"]
[Date "2023.02.03"]
[Round "2"]
[White "Aygehovit"]
[Black "OparinGrigoriy"]
[Result "0-1"]
[ECO "C60"]
[WhiteElo "2439"]
[BlackElo "2618"]
[Annotator "TA"]
[PlyCount "102"]
[EventDate "2023.02.03"]
[EventType "swiss"]
[EventCountry "NET"]
[SourceTitle "playchess.com"]
[Source "ChessBase"]
[SourceQuality "1"]
[TimeControl "600+2"]

{[%evp 9,102,27,45,25,24,0,14,16,7,5,10,4,7,-12,0,-17,-7,-16,-19,-105,-95,-99,-91,-70,-52,-104,-94,-121,-120,-157,-145,-169,-163,-148,-93,-89,-89,-126,-119,-127,-111,-133,-91,-134,0,0,0,0,0,0,78,24,42,-32,0,-129,-121,-156,-146,-138,-139,-596,-583,-553,-532,-471,-165,-200,-102,-1131,-939,-2018,-347,-332,-333,-316,-309,-308,0,-298,0,-291,-193,-2374,-263,-262,0,-1718,-2239,-29966,-29969,-6269,-11684,-29997,-29998]} 1. e4 {[%emt 0:00:03]} e5 {[%emt 0:00:04]} 2. Nf3 {[%emt 0:00:01]} Nc6 {[%emt 0:00:01]} 3. Bb5 {[%emt 0:00:01]} Nge7 {[%emt 0:00:02]} 4. Nc3 {[%emt 0:00:03]} Ng6 {[%emt 0:00:05]} 5. h4 {[%emt 0:00:04][%cal Bh2h4,Bh4h5][%mdl 32]} Nd4 {[%emt 0:00:07]} 6. h5 {[%emt 0:00:27] C60: Ruy Lopez: Unusual Black 3rd moves and 3...g6.} (6. Bc4 $5 {[%cal Rh4h5]}) 6... Nf4 {[%emt 0:00:01]} 7. g3 {[%emt 0:00:11] [#]} Nfe6 $146 {[%emt 0:00:20]} ({Predecessor:} 7... Nxf3+ 8. Qxf3 Ne6 9. Ne2 Bc5 10. h6 g6 11. c3 c6 12. Bc4 Ng5 13. Qg2 d5 {1-0 Guid,M (2315)-Markoja,S (1963) Ljubljana-chT 65th Superliga 2012 (8.1)}) 8. Nxe5 {[%emt 0:00:34] The position is equal.} Nxb5 {[%emt 0:00:28]} 9. Nxb5 {[%emt 0:00:03]} d5 $1 {[%emt 0:00:02]} 10. d4 {[%emt 0:03:53] Black must now prevent h6.} f6 {[%emt 0:01:58]} 11. Ng4 {[%emt 0:00:16] Excellent horsemanship.} (11. h6 $5 {[%cal Rh6g7]} g6 12. Ng4 $11) 11... dxe4 {[%emt 0:00:23]} 12. Be3 {[%emt 0:01:19]} c6 {[%emt 0:00:40]} 13. Nc3 {[%emt 0:00:02]} Bb4 {[%emt 0:00:00]} 14. a3 {[%emt 0:00:12]} (14. h6 $11 {remains equal.}) 14... Bxc3+ $17 {[%emt 0:00:04]} 15. bxc3 {[%emt 0:00:00]} O-O {[%emt 0:00:07]} 16. h6 {[%emt 0:00:02]} g5 {[%emt 0:00:12]} 17. c4 {[%emt 0:00:07]} (17. a4 $15) 17... Nc7 {[%emt 0:00:50]} 18. Qe2 {[%emt 0:00:34]} Be6 {[%emt 0:00:10]} 19. d5 {[%emt 0:01:02]} cxd5 {[%emt 0:00:01] ...d4 is the strong threat.} 20. Bd4 {[%emt 0:00:04]} Bxg4 $1 {[%emt 0:01:52]} (20... dxc4 21. O-O-O $17) 21. Qxg4 {[%emt 0:00:00]} dxc4 {[%emt 0:00:03]} (21... f5 $142 $1 {[%cal Rf5g4]} 22. Qe2 Ne6) 22. O-O-O {[%emt 0:00:13][%cal Od4e5]} Qe7 {[%emt 0:00:02] Against Be5} 23. Rhe1 {[%emt 0:00:53]} f5 {[%emt 0:00:08]} (23... Qxa3+ $6 24. Bb2 Qc5 25. Rd7 $11) 24. Qe2 {[%emt 0:00:03]} b5 {[%emt 0:00:51]} 25. Qd2 {[%emt 0:00:05]} Rad8 {[%emt 0:00:15] Threatens to win with ...Ne6.} (25... Qxa3+ $2 26. Bb2 Qe7 27. Qc3 $18) 26. Qa5 {[%emt 0:00:05]} Rd7 {[%emt 0:00:38]} (26... g4 $17 {Hoping for ...a6.} 27. a4 a6 28. axb5 axb5) 27. Bb2 $1 $11 {[%emt 0:00:15]} Nd5 {[%emt 0:00:30] Against Qc3. aiming for ...Rc8.} 28. Qxb5 {[%emt 0:00:17]} c3 {[%emt 0:00:03]} 29. Bxc3 {[%emt 0:00:03]} (29. Rxd5 $2 cxb2+ 30. Kd2 Rb7 $19) 29... Qe6 {[%emt 0:00:30]} (29... Qxa3+ $2 30. Bb2 Qd6 31. c4 $18) (29... Nxc3 $11 {keeps the balance.} 30. Qxd7 Ne2+ 31. Rxe2 Qxa3+ 32. Kd2 Qa5+ 33. Ke3 (33. Kc1 Qa3+ 34. Kd2 Qa5+ 35. Ke3 Qc3+ $11) 33... Qc3+ 34. Rd3 exd3 35. cxd3 Qc1+ 36. Rd2 Qe1+ 37. Re2 (37. Kd4 Qa1+ 38. Ke3 Qf6 $11) 37... Qc1+ 38. Rd2 Qe1+ 39. Re2 (39. Kd4 Qa1+ 40. Ke3 Qf6 $11) 39... Qc1+) 30. Bb2 {[%emt 0:00:01]} (30. g4 $1 $16) 30... Rfd8 {[%emt 0:00:05]} 31. Qc4 {[%emt 0:00:06]} ({White should play} 31. g4 $14) 31... Kf7 {[%emt 0:00:03]} (31... g4 $5 {[%cal Re6h6]}) 32. Qd4 {[%emt 0:00:02] [#]} (32. f3 $11 Nf6 33. Qxe6+ Kxe6 34. Bxf6 Kxf6 35. fxe4 (35. Rxd7 Rxd7 36. fxe4 fxe4 $11)) 32... Kg6 $1 $17 {[%emt 0:00:03][%cal Od5f4] And now ...Nf4! would win.} (32... Qxh6 $6 33. g4 $11) 33. Rh1 {[%emt 0:00:04]} Nb6 {[%emt 0:00:10][%cal Bd5b6,Bb6a4,Ba4b2][%mdl 32] Repels Qc4} 34. Qc3 {[%emt 0:00:01]} Na4 {[%emt 0:00:06] The board is on fire.} 35. Qb4 {[%emt 0:00:02][%mdl 8192] [#]} (35. Rxd7 $17 {is tougher.} Rxd7 36. Qh8) 35... Nxb2 $1 $19 {[%emt 0:00:02]} (35... Rxd1+ 36. Rxd1 Rxd1+ 37. Kxd1 Nxb2+ 38. Qxb2 $17) 36. Rxd7 {[%emt 0:00:02]} Rxd7 {[%emt 0:00:01]} (36... Qxd7 37. Qxb2 Qd4 38. Qxd4 Rxd4 39. Rh2 $17) 37. Qxb2 {[%emt 0:00:01][%mdl 4096] Endgame KQR-KQR} Qd6 {[%emt 0:00:07] Repels Qb8} (37... e3 38. fxe3 Qxe3+ 39. Kb1 Qf3) 38. Qc3 {[%emt 0:00:02]} Rc7 {[%emt 0:00:03]} (38... f4 $19 {[%cal Oe4e3] ...e3! would be deadly.} 39. Qb3 Qf6) 39. Qa5 $2 {[%emt 0:00:02][%mdl 8192] Prevents e3.} (39. Qb3 $17) 39... Qc6 {[%emt 0:00:08][%csl Gc7][%cal Rc6c2]} 40. Qd2 {[%emt 0:00:01]} Qc5 $2 {[%emt 0:00:03]} (40... e3 41. Qd1 e2 {[%mdl 64] Deflection} 42. Qxe2 Qxh1+ 43. Qd1 Qc6) 41. Kb2 {[%emt 0:00:02]} Rb7+ {[%emt 0:00:02]} 42. Ka2 {[%emt 0:00:02]} Qc4+ {[%emt 0:00:02]} 43. Ka1 {[%emt 0:00:00]} Qc5 {[%emt 0:00:01][%cal Rc5a3] Prevents Qd6+} 44. Ka2 {[%emt 0:00:01]} Qc4+ {[%emt 0:00:04]} 45. Ka1 {[%emt 0:00:01]} Qe6 $40 {[%emt 0:00:00][%mdl 128] Black goes for the king.} ({Not} 45... Qc5 $2 46. Ka2 $19) 46. c3 $2 {[%emt 0:00:03]} (46. Qd4) 46... Qe7 $2 {[%emt 0:00:02] Active counter play!} (46... Rb3 47. Qc1 Qc4) 47. Ka2 {[%emt 0:00:01]} Qe6+ {[%emt 0:00:01]} (47... Rd7 48. Qb2 (48. Qe2 $2 Rd3 $19) 48... Qc5) 48. Ka1 {[%emt 0:00:01]} Rb3 {[%emt 0:00:01]} 49. Qa2 {[%emt 0:00:09]} Qc4 {[%emt 0:00:01]} 50. Rc1 {[%emt 0:00:01]} Qa4 {[%emt 0:00:01]} 51. Qd2 {[%emt 0:00:04]} Qxa3+ {[%emt 0:00:02] An exciting game.   Weighted Error Value: White=0.83/Black=0.61} 0-1

[Event "CCT Airthings Masters Play-In 2023"]
[Site "Online"]
[Date "2023.02.03"]
[Round "2"]
[White "BrandonJacobson"]
[Black "AlexanderL"]
[Result "0-1"]
[ECO "A17"]
[WhiteElo "2392"]
[BlackElo "2602"]
[Annotator "TA"]
[PlyCount "108"]
[EventDate "2023.02.03"]
[EventType "swiss"]
[EventCountry "NET"]
[SourceTitle "playchess.com"]
[Source "ChessBase"]
[SourceQuality "1"]
[TimeControl "600+2"]

{[%evp 9,108,0,10,7,9,7,13,15,27,26,27,20,26,20,31,26,31,23,51,39,70,65,68,79,88,79,82,50,54,42,61,68,77,52,59,56,64,23,22,23,32,3,62,64,57,60,59,21,22,18,41,30,32,0,32,16,16,14,15,15,29,0,45,45,63,57,54,63,70,66,68,10,10,9,10,10,14,-8,-8,-8,-8,-133,-87,-95,-96,-137,-141,-145,-154,-136,0,0,0,-29973,-29974,-29973,-29974,-29974,-29975,-29965,-29961]} 1. Nf3 {[%emt 0:00:06]} d5 {[%emt 0:00:11]} 2. e3 {[%emt 0:00:01]} Nf6 {[%emt 0:00:08]} 3. c4 {[%emt 0:00:01]} e6 {[%emt 0:00:13]} 4. Nc3 {[%emt 0:00:02]} Bd6 {[%emt 0:00:27]} 5. b3 {[%emt 0:00:01]} O-O {[%emt 0:00:03]} 6. Bb2 {[%emt 0:00:02] A17: English Opening: 1...Nf6 with ...Bb4.} a6 {[%emt 0:00:13]} 7. g3 {[%emt 0:00:21]} b6 {[%emt 0:00:05]} 8. cxd5 {[%emt 0:00:03] The position is equal.} exd5 {[%emt 0:00:01]} 9. Bg2 {[%emt 0:00:00]} Bb7 {[%emt 0:00:04]} 10. O-O {[%emt 0:00:01]} Nbd7 {[%emt 0:00:03]} 11. Rc1 {[%emt 0:00:00]} Re8 {[%emt 0:00:01]} 12. Re1 {[%emt 0:00:02][%cal Bf1e1,Be1e2,Be2c2][%mdl 32]} Nc5 $5 {[%emt 0:00:05][%mdl 4] Leaves trodden paths.} 13. d3 {[%emt 0:00:43] [#]} Bf8 $146 {[%emt 0:00:06]} ({Predecessor:} 13... a5 14. Nb5 Be7 15. Nxc7 Qxc7 16. d4 Rad8 17. dxc5 bxc5 18. Nd4 Qb6 19. Nf5 Bf8 {½-½ Sonis,F (2538)-Raja,R (2490) Junior Speed Qual 1 blitz 2022 (1.3)}) 14. Re2 {[%emt 0:00:22]} g6 {[%emt 0:00:20]} 15. Rec2 {[%emt 0:00:05]} Ne6 {[%emt 0:00:09]} 16. Ne2 {[%emt 0:00:09]} Bg7 {[%emt 0:00:08][%cal Bf8g7,Bg7f6,Bf6e7,Be7c5,Bc5a3,Ba3d6][%mdl 32]} 17. Ned4 {[%emt 0:00:37]} Nxd4 {[%emt 0:00:09]} 18. Bxd4 {[%emt 0:00:00]} c5 {[%emt 0:00:05]} 19. Bxf6 {[%emt 0:00:26]} Bxf6 {[%emt 0:00:15]} 20. d4 {[%emt 0:00:00]} Be7 {[%emt 0:00:05]} 21. Ne1 {[%emt 0:01:17][%cal Rd4c5,Bf3e1,Be1d3,Bd3f4][%mdl 32]} cxd4 {[%emt 0:00:21]} 22. Qxd4 {[%emt 0:00:12]} (22. Rc7 Rb8 23. exd4 (23. Qxd4 Ba3 $17) 23... Ba3 $15) 22... Bc5 {[%emt 0:00:07]} 23. Qd2 {[%emt 0:00:11]} Qe7 {[%emt 0:00:33]} 24. Nd3 {[%emt 0:00:30][%cal Rd3c5]} (24. Bxd5 $2 {too greedy.} Rad8 25. Rxc5 (25. e4 $2 Bxd5 26. exd5 Bb4 $19 {[%mdl 64] Skewer}) 25... bxc5 $19) 24... Ba3 {[%emt 0:00:05]} 25. Rd1 {[%emt 0:00:33]} Rad8 {[%emt 0:00:56]} (25... d4 $1 $11) 26. Nf4 $14 {[%emt 0:00:16][%cal Rf4d5]} d4 {[%emt 0:00:54]} 27. exd4 {[%emt 0:00:04]} Bd6 {[%emt 0:00:13]} 28. d5 {[%emt 0:00:58]} Qf6 {[%emt 0:00:14]} 29. h4 {[%emt 0:00:07]} Rd7 {[%emt 0:00:45]} 30. Bf3 {[%emt 0:00:22]} Red8 {[%emt 0:00:05]} 31. Bg4 {[%emt 0:00:14]} Bxf4 {[%emt 0:00:07]} 32. Qxf4 {[%emt 0:00:01]} Qxf4 {[%emt 0:00:01]} 33. gxf4 {[%emt 0:00:00]} f5 {[%emt 0:01:17]} (33... Rxd5 $2 34. Rxd5 Bxd5 35. Rd2 $18) 34. Be2 {[%emt 0:00:25]} b5 {[%emt 0:00:01]} 35. a4 {[%emt 0:00:10]} (35. Bf3 $5 {[%cal Rc2c5]}) 35... bxa4 {[%emt 0:00:48]} ({But not} 35... Bxd5 36. axb5 Bxb3 37. Rxd7 Rxd7 38. Rc3 $16) 36. bxa4 {[%emt 0:00:00]} Kf8 {[%emt 0:00:31]} 37. Rc5 {[%emt 0:00:11]} Bxd5 {[%emt 0:00:14]} 38. Bxa6 {[%emt 0:00:02]} Be4 {[%emt 0:00:06]} 39. Rxd7 {[%emt 0:01:41]} Rxd7 {[%emt 0:00:00][%mdl 4096] Endgame KRB-KRB} 40. Rc1 {[%emt 0:00:00] Dodges Rd1+} (40. Be2 $14) 40... Rd4 $11 {[%emt 0:00:09]} 41. Bb5 {[%emt 0:00:05]} Bd5 {[%emt 0:00:01]} 42. a5 {[%emt 0:00:17] With the idea a6.} Rxf4 {[%emt 0:00:03]} 43. a6 {[%emt 0:00:19] aiming for a7.} Rxh4 {[%emt 0:00:04][%csl Gd5][%cal Rh4h1]} 44. Rc8+ {[%emt 0:00:15]} Kg7 {[%emt 0:00:02][%csl Gd5][%cal Rh4h1]} 45. Kf1 {[%emt 0:00:05]} (45. f3 $11 {keeps the balance.}) 45... Bf3 {[%emt 0:00:07]} (45... Rb4 $142 $1 {[%cal Rb4b5]} 46. Bd3 Kf6) 46. Ke1 $17 {[%emt 0:00:05]} Rd4 {[%emt 0:00:01][%csl Gf3][%cal Rd4d1]} 47. Rc1 {[%emt 0:00:04] Prevents Rd1+} h5 $1 {[%emt 0:00:10]} 48. a7 {[%emt 0:00:05]} h4 $1 {[%emt 0:00:03] Black is more active.} 49. Ra1 {[%emt 0:00:05]} h3 {[%emt 0:00:05]} (49... Ba8 $1 $17 50. Kf1 Rb4) 50. a8=Q $11 {[%emt 0:00:04]} Bxa8 {[%emt 0:00:01]} 51. Rxa8 {[%emt 0:00:00][%mdl 8192] [#]} (51. Ra7+ $11 Kf6 52. Rxa8) 51... h2 $1 {[%emt 0:00:02] Black mates.} 52. Bc6 {[%emt 0:00:00] [#]} Re4+ $1 {[%emt 0:00:01][%mdl 576] Promotion} 53. Bxe4 {[%emt 0:00:03]} fxe4 {[%emt 0:00:01]} 54. Ra7+ {[%emt 0:00:01]} Kh6 {[%emt 0:00:02] Weighted Error Value: White=0.28 (precise) /Black=0.11 (very precise)} 0-1

[Event "CCT Airthings Masters Play-In 2023"]
[Site "Online"]
[Date "2023.02.03"]
[Round "2"]
[White "Fighterman91"]
[Black "LastGladiator1"]
[Result "0-1"]
[ECO "B12"]
[WhiteElo "2374"]
[BlackElo "2601"]
[Annotator "NA"]
[PlyCount "72"]
[EventDate "2023.02.03"]
[EventType "swiss"]
[EventCountry "NET"]
[SourceTitle "playchess.com"]
[Source "ChessBase"]
[SourceQuality "1"]
[TimeControl "600+2"]

1. e4 {[%emt 0:00:04]} c6 {[%emt 0:00:11]} 2. d4 {[%emt 0:00:05]} d5 {[%emt 0:00:01]} 3. e5 {[%emt 0:00:00]} Bf5 {[%emt 0:00:01]} 4. h4 {[%emt 0:00:02]} h5 {[%emt 0:00:01]} 5. Bd3 {[%emt 0:00:01]} Bxd3 {[%emt 0:00:02]} 6. Qxd3 {[%emt 0:00:00]} Qa5+ {[%emt 0:00:08]} 7. Nd2 {[%emt 0:00:05]} e6 {[%emt 0:00:01]} 8. Ne2 {[%emt 0:00:17]} Ne7 {[%emt 0:00:06]} 9. O-O {[%emt 0:00:03]} Qa6 {[%emt 0:00:06]} 10. c4 {[%emt 0:00:16]} Nf5 {[%emt 0:00:04]} 11. g3 {[%emt 0:00:00]} Nd7 {[%emt 0:00:02]} 12. b3 {[%emt 0:00:06]} Rd8 {[%emt 0:00:04]} 13. Bb2 {[%emt 0:01:14]} Ba3 {[%emt 0:00:15]} 14. Bxa3 {[%emt 0:00:04]} Qxa3 {[%emt 0:00:01]} 15. cxd5 {[%emt 0:00:20]} cxd5 {[%emt 0:00:02]} 16. Nf4 {[%emt 0:00:06]} g6 {[%emt 0:00:14]} 17. Rfc1 {[%emt 0:00:28]} O-O {[%emt 0:00:08]} 18. Nf3 {[%emt 0:00:43]} Rc8 {[%emt 0:00:03]} 19. Qd2 {[%emt 0:00:32]} a5 {[%emt 0:00:42]} 20. Rc2 {[%emt 0:00:23]} Rxc2 {[%emt 0:00:38]} 21. Qxc2 {[%emt 0:00:02]} Nb8 {[%emt 0:00:02]} 22. Qc7 {[%emt 0:00:43]} Nc6 {[%emt 0:00:16]} 23. Qxb7 {[%emt 0:01:28]} Ncxd4 {[%emt 0:00:18]} 24. Ng5 {[%emt 0:00:10]} Qb2 {[%emt 0:00:53]} 25. Rf1 {[%emt 0:00:02]} Ne2+ {[%emt 0:00:05]} 26. Nxe2 {[%emt 0:00:03]} Qxe2 {[%emt 0:00:00]} 27. a4 {[%emt 0:01:19]} Qxe5 {[%emt 0:00:16]} 28. Rc1 {[%emt 0:00:01]} Qf6 {[%emt 0:01:22]} 29. Rc7 {[%emt 0:00:37]} Nh6 {[%emt 0:00:10]} 30. Qa7 {[%emt 0:00:20]} Ng4 {[%emt 0:00:06]} 31. Rc2 {[%emt 0:00:11]} d4 {[%emt 0:00:55]} 32. Qxa5 {[%emt 0:00:04]} d3 {[%emt 0:00:13]} 33. Rd2 {[%emt 0:00:13]} Rc8 {[%emt 0:00:02]} 34. Qa7 {[%emt 0:00:53]} Rc2 {[%emt 0:00:43]} 35. Ne4 {[%emt 0:00:08]} Qf3 {[%emt 0:00:22]} 36. Qb8+ {[%emt 0:00:04]} Kg7 {[%emt 0:00:06]} 0-1

[Event "CCT Airthings Masters Play-In 2023"]
[Site "Online"]
[Date "2023.02.03"]
[Round "2"]
[White "SalgadoChess91"]
[Black "kirillshevchenko"]
[Result "1-0"]
[ECO "B30"]
[WhiteElo "2344"]
[BlackElo "2589"]
[Annotator "NA"]
[PlyCount "93"]
[EventDate "2023.02.03"]
[EventType "swiss"]
[EventCountry "NET"]
[SourceTitle "playchess.com"]
[Source "ChessBase"]
[SourceQuality "1"]
[TimeControl "600+2"]

1. e4 {[%emt 0:00:05]} c5 {[%emt 0:00:10]} 2. Nf3 {[%emt 0:00:02]} Nc6 {[%emt 0:00:00]} 3. Bb5 {[%emt 0:00:01]} e6 {[%emt 0:00:02]} 4. O-O {[%emt 0:00:04]} Nge7 {[%emt 0:00:01]} 5. Re1 {[%emt 0:00:01]} b6 {[%emt 0:00:01]} 6. c3 {[%emt 0:00:04]} a6 {[%emt 0:00:01]} 7. Bf1 {[%emt 0:00:06]} d5 {[%emt 0:00:01]} 8. d3 {[%emt 0:00:06]} Bb7 {[%emt 0:00:06]} 9. Bf4 {[%emt 0:00:04]} Ng6 {[%emt 0:00:27]} 10. Bg3 {[%emt 0:00:03]} Be7 {[%emt 0:00:01]} 11. Nbd2 {[%emt 0:00:13]} O-O {[%emt 0:01:27]} 12. a4 {[%emt 0:00:04]} Qd7 {[%emt 0:00:08]} 13. exd5 {[%emt 0:00:20]} exd5 {[%emt 0:00:04]} 14. d4 {[%emt 0:00:20]} cxd4 {[%emt 0:01:31]} 15. Nxd4 {[%emt 0:00:05]} Nxd4 {[%emt 0:00:05]} 16. cxd4 {[%emt 0:00:00]} Bb4 {[%emt 0:00:02]} 17. Bd3 {[%emt 0:01:01]} Rfe8 {[%emt 0:00:18]} 18. Rxe8+ {[%emt 0:00:06]} Rxe8 {[%emt 0:00:02]} 19. Nf3 {[%emt 0:00:04]} Bc6 {[%emt 0:01:44]} 20. Bxa6 {[%emt 0:00:45]} Ra8 {[%emt 0:00:03]} 21. Bd3 {[%emt 0:00:04]} Bxa4 {[%emt 0:00:18]} 22. b3 {[%emt 0:00:39]} Bc6 {[%emt 0:00:04]} 23. Rxa8+ {[%emt 0:00:03]} Bxa8 {[%emt 0:00:01]} 24. h4 {[%emt 0:00:03]} Bd6 {[%emt 0:00:14]} 25. Qa1 {[%emt 0:01:26]} Bc6 {[%emt 0:00:19]} 26. Bxd6 {[%emt 0:00:02]} Qxd6 {[%emt 0:00:01]} 27. Qa7 {[%emt 0:00:01]} Be8 {[%emt 0:00:11]} 28. Qa8 {[%emt 0:00:08]} Qc6 {[%emt 0:00:09]} 29. Qxc6 {[%emt 0:00:49]} Bxc6 {[%emt 0:00:02]} 30. Bxg6 {[%emt 0:00:12]} hxg6 {[%emt 0:00:08]} 31. Ne5 {[%emt 0:00:03]} Be8 {[%emt 0:00:03]} 32. f3 {[%emt 0:00:04]} f6 {[%emt 0:00:02]} 33. Ng4 {[%emt 0:00:03]} Kf7 {[%emt 0:00:01]} 34. Kf2 {[%emt 0:00:03]} Bb5 {[%emt 0:00:03]} 35. Ke1 {[%emt 0:00:04]} Ke6 {[%emt 0:00:02]} 36. Ne3 {[%emt 0:00:03]} Ba6 {[%emt 0:00:15]} 37. Kd2 {[%emt 0:00:02]} Kd6 {[%emt 0:00:02]} 38. h5 {[%emt 0:00:37]} Ke6 {[%emt 0:01:31]} 39. hxg6 {[%emt 0:00:05]} f5 {[%emt 0:00:00]} 40. g3 {[%emt 0:01:13]} Kf6 {[%emt 0:00:55]} 41. Nxd5+ {[%emt 0:00:06]} Kxg6 {[%emt 0:00:01]} 42. Ke3 {[%emt 0:00:14]} Bb7 {[%emt 0:00:09]} 43. Nxb6 {[%emt 0:00:02]} Kf6 {[%emt 0:00:01]} 44. d5 {[%emt 0:00:10]} g5 {[%emt 0:00:06]} 45. f4 {[%emt 0:00:02]} gxf4+ {[%emt 0:00:03]} 46. gxf4 {[%emt 0:00:01]} Ke7 {[%emt 0:00:02]} 47. Kd4 {[%emt 0:00:01]} 1-0